Cogmind - Beta 10 @@@ ROGUE MODE // 2020.09.20 @ 15:57:23 Player: Tmvn Result: Self-destructed Performance ------------- Evolutions (2) 1000 Regions Visited (6) 1200 Robots Destroyed (20) 100 Value Destroyed (294) 294 Prototype IDs (2) 40 Alien Tech Used (0) 0 Bonus (341) 341 TOTAL SCORE: 2975 Bonus ------- Follower Combat Kills 41 Aligned with FarCom 300 Cogmind --------- Core Integrity 491/550 Matter 15/300 Energy 280/280 System Corruption 3% Temperature Cool (0) Movement Rolling (100) Ox1 Location -8/Storage Parts ------- > --- POWER (1) -------- Heavy Ion Engine > --- PROPULSION (3) --- Wheel Compact Wheel > --- UTILITY (5) ------ Large Storage Unit Hardened Medium Armor Plating Hardened Medium Armor Plating > --- WEAPON (2) ------- Flak Cannon > --- INVENTORY (10) --- Ion Engine Light Ion Engine Light Ion Engine Wheel Small Storage Unit Advanced Sensor Array Shock Rifle High-powered Shotgun Scatter Rocket Array Shock Maul Peak State ------------ > --- POWER ------------ Heavy Ion Engine > --- PROPULSION ------- Wheel Wheel Compact Wheel > --- UTILITY ---------- Large Storage Unit Hardened Medium Armor Plating Hardened Medium Armor Plating Hardened Medium Armor Plating > --- WEAPON ----------- Flak Cannon Scatter Rocket Array > --- INVENTORY -------- Ion Engine Light Ion Engine Light Ion Engine Light Ion Engine Small Storage Unit Advanced Sensor Array Shock Rifle High-powered Shotgun Shock Maul [Rating: 27] Favorites ----------- Power Light Ion Engine Engine Light Ion Engine Propulsion Aluminum Leg Leg Aluminum Leg Wheel Wheel Utility Small Storage Unit Device Advanced Sensor Array Storage Small Storage Unit Protection Hardened Medium Armor Plating Weapon Assault Rifle Energy Gun Medium Laser Ballistic Gun Assault Rifle Ballistic Cannon Flak Cannon Launcher Scatter Rocket Array Special Weapon Mining Laser Build | -11 -10 -10 -10 -9 -8 -8 ------- Run | Scr Mat Min Exi Min Mat Sto Slots Evolved 4 | . . . . . 4 . Power . | . . . . . . . Propulsion 1 | . . . . . 1 . Utility 3 | . . . . . 3 . Weapon . | . . . . . . . Parts Attached 21 | . 1 . . 8 6 6 Power 5 | . 1 . . 3 . 1 Engine 5 | . 1 . . 3 . 1 Core . | . . . . . . . Reactor . | . . . . . . . Propulsion 5 | . . . . 3 1 1 Treads . | . . . . . . . Leg . | . . . . . . . Wheel 5 | . . . . 3 1 1 Hover . | . . . . . . . Flight . | . . . . . . . Utility 6 | . . . . . 3 3 Device 1 | . . . . . . 1 Storage 1 | . . . . . . 1 Processor . | . . . . . . . Hackware . | . . . . . . . Protection 4 | . . . . . 3 1 Artifact . | . . . . . . . Weapon 5 | . . . . 2 2 1 Energy Gun 2 | . . . . 1 1 . Energy Cannon . | . . . . . . . Ballistic Gun . | . . . . . . . Ballistic Cannon 1 | . . . . . 1 . Launcher 1 | . . . . . . 1 Special Weapon 1 | . . . . 1 . . Impact Weapon . | . . . . . . . Slashing Weapon . | . . . . . . . Piercing Weapon . | . . . . . . . Special Melee Weapon . | . . . . . . . Unidentified Prototypes 2 | . . . . . . 2 Parts Lost 3 | . . . . . . 3 Power . | . . . . . . . Propulsion 2 | . . . . . . 2 Utility 1 | . . . . . . 1 Weapon . | . . . . . . . Highest Loss Streak 2 | . . . . . . 2 Average Slot Usage (%) 84 | . 85 85 85 84 83 81 Engine 12 | . 14 14 14 14 9 9 Leg 16 | . 28 28 28 14 . . Wheel 10 | . . . . 13 27 23 Storage 12 | . 14 14 14 14 9 9 Protection 7 | . . . . . 21 24 Energy Gun 2 | . . . . 5 9 2 Ballistic Gun 17 | . 28 28 28 19 . . Ballistic Cannon 2 | . . . . . 7 9 Naked Turns . | . . . . . . . Heaviest Build 62 | 13 13 11 11 11 40 62 Greatest Support 36 | 20 20 20 20 26 30 36 Greatest Overweight (x) 2 | . . . . . 1 2 Average Overweight (x) . | . . . . . . 1 Largest Inventory Capacity 12 | . 6 6 6 6 6 12 Average Capacity 6 | . 6 6 6 6 6 9 Most Carried 10 | . 5 3 3 6 6 10 Average Carried 4 | . 2 3 3 4 5 8 Final Capacity 10 | 6 6 6 6 6 6 10 Final Carried 10 | 6 3 3 3 5 6 10 Class Distribution -------------------- 84% | Mutant 15% | Scavenger-Mutant Dominant Class ---------------- Mutant | -10/Materials Mutant | -10/Mines Mutant | -10/Exiles Mutant | -9/Mines Scavenger-Mutant | -8/Materials Mutant | -8/Storage Resources | -11 -10 -10 -10 -9 -8 -8 ----------- Run | Scr Mat Min Exi Min Mat Sto Matter Collected 548 | 200 60 . . 142 86 60 Remotely . | . . . . . . . Salvage Created 422 | . 77 . . 171 40 134 Parts 44 | . 11 . . 18 2 13 Haulers Intercepted 1 | . . . . . . 1 Recyclers Shooed 1 | . . . . 1 . . Parts Field Recycled . | . . . . . . . Retrieved Matter . | . . . . . . . Parts Self-Destructed . | . . . . . . . Prevented . | . . . . . . . Kills | -11 -10 -10 -10 -9 -8 -8 ------- Run | Scr Mat Min Exi Min Mat Sto Combat Hostiles Destroyed 10 | . 4 . . 3 1 2 Guns 7 | . 4 . . 3 . . Cannons 1 | . . . . . 1 . AOE 2 | . . . . . . 2 Classes Destroyed 8 | . 2 . . 3 1 2 Worker 3 | . . . . . . 3 Builder 4 | . . . . 2 . 2 Tunneler 1 | . . . . 1 . . Hauler 1 | . . . . . . 1 Recycler 1 | . . . . 1 . . Swarmer 6 | . 3 . . 3 . . Grunt 3 | . 1 . . . . 2 Sentry 1 | . . . . . 1 . Best Kill Streak 5 | . 4 . . 2 1 5 Combat Bots Only 4 | . 4 . . 2 1 2 Max Kills in Single Turn 3 | . 1 . . 2 1 3 Gunslinging . | . . . . . . . Exploded 1 | . . . . . . 1 Melee . | . . . . . . . Uniques/NPCs Destroyed . | . . . . . . . Combat | -11 -10 -10 -10 -9 -8 -8 -------- Run | Scr Mat Min Exi Min Mat Sto Damage Taken 1371 | . 188 . . 138 104 941 Core 95 | . 36 . . . 14 45 Absorbed by Shields . | . . . . . . . Core Remaining (%) 92 | 100 . . . 85 . . Volleys Fired 55 | . 13 . . 25 5 12 Largest 2 | . 2 . . 2 2 2 Hottest 100 | . 40 . . 100 94 94 Shots Fired 95 | . 26 . . 43 10 16 Gun 68 | . 26 . . 36 5 1 Cannon 17 | . . . . . 5 12 Launcher 3 | . . . . . . 3 Special 7 | . . . . 7 . . Kinetic 79 | . 26 . . 36 5 12 Thermal 8 | . . . . 7 1 . Explosive 3 | . . . . . . 3 Electromagnetic 5 | . . . . . 4 1 Robot Hit Streak 7 | . 5 . . 5 6 7 Robot Miss Streak 6 | . 3 . . 6 4 6 Penetration Max . | . . . . . . . Secondary Targets 3 | . 2 . . 1 . . Max Gunslinging Chain 1 | . 1 . . 1 . . Shots Hit Robots 62 | . 15 . . 21 10 16 Core Hits 42 | . 5 . . 8 6 23 Critical Hits . | . . . . . . . Critical Kills . | . . . . . . . Critical Parts Destroyed . | . . . . . . . Melee Attacks . | . . . . . . . Impact . | . . . . . . . Slashing . | . . . . . . . Piercing . | . . . . . . . Sneak Attacks . | . . . . . . . Combat Hostiles . | . . . . . . . Follow-up Attacks . | . . . . . . . Damage Inflicted 1275 | . 223 . . 293 186 573 Guns 619 | . 223 . . 293 86 17 Cannons 294 | . . . . . 100 194 Explosions 362 | . . . . . . 362 Melee . | . . . . . . . Ramming . | . . . . . . . Kinetic 810 | . 223 . . 293 100 194 Thermal 13 | . . . . . 13 . Explosive 362 | . . . . . . 362 Electromagnetic 90 | . . . . . 73 17 Impact . | . . . . . . . Slashing . | . . . . . . . Piercing . | . . . . . . . Highest Corruption 3 | . . . . . . 3 Average Corruption 1 | . . . . . . 1 Corruption Purged . | . . . . . . . Effects 1 | . . . . . . 1 Message Errors 1 | . . . . . . 1 Overload Shots . | . . . . . . . Overflow Damage 17 | . . . . . . 17 Projectiles . | . . . . . . . Explosions 17 | . . . . . . 17 Melee . | . . . . . . . Knockbacks 4 | . . . . . 2 2 Impact . | . . . . . . . Kinetic 4 | . . . . . 2 2 Secondary . | . . . . . . . Self-Inflicted Damage 16 | . . . . . . 16 Shots 1 | . . . . . . 1 Rammed . | . . . . . . . Targets Rammed . | . . . . . . . Kicked . | . . . . . . . Crushed . | . . . . . . . Highest Temperature 140 | . . . . 60 140 116 Average Temperature 39 | . . . . 21 58 37 Received Heat Transfer 471 | . 12 . . . 18 441 Siege Activations . | . . . . . . . Robots Corrupted . | . . . . . . . Combat Hostiles . | . . . . . . . Parts Fried . | . . . . . . . Impact Corruptions . | . . . . . . . Robots Melted . | . . . . . . . Combat Hostiles . | . . . . . . . Parts Melted . | . . . . . . . Heat Transferred 37 | . . . . . 37 . Parts Sabotaged . | . . . . . . . Parts Stolen . | . . . . . . . Parts Stripped . | . . . . . . . Power Chain Reactions . | . . . . . . . Missiles Intercepted . | . . . . . . . Alert | -11 -10 -10 -10 -9 -8 -8 ------- Run | Scr Mat Min Exi Min Mat Sto Peak Influence 295 | . 130 50 . 90 159 295 Initial 58 | . . 50 . . 35 58 Average 103 | . 54 50 . 69 62 185 Maximum Alert Level 1 | . . . . . . 1 Low Security (%) 76 | . 100 100 . 100 100 28 Level 1 23 | . . . . . . 71 Level 2 . | . . . . . . . Level 3 . | . . . . . . . Level 4 . | . . . . . . . Level 5 . | . . . . . . . High Security . | . . . . . . . Max Security . | . . . . . . . Squads Dispatched 2 | . 1 . . . 1 . Investigation . | . . . . . . . Extermination . | . . . . . . . Reinforcement 2 | . 1 . . . 1 . Assault . | . . . . . . . Garrison . | . . . . . . . Intercept . | . . . . . . . Construction Impeded . | . . . . . . . Haulers Reinforced . | . . . . . . . Stealth | -11 -10 -10 -10 -9 -8 -8 --------- Run | Scr Mat Min Exi Min Mat Sto Distress Signals 6 | . 4 . . . . 2 Communications Jammed . | . . . . . . . Distress Signals . | . . . . . . . Times Spotted 38 | . 12 . . 4 5 17 Peak Tracking Total 12 | . 6 . . 3 2 12 Tactical Retreats 2 | . 1 . . 1 . . Traps | -11 -10 -10 -10 -9 -8 -8 ------- Run | Scr Mat Min Exi Min Mat Sto Traps Triggered 2 | . . . . . . 2 Indirectly . | . . . . . . . Trap Hack Attempts . | . . . . . . . Triggered . | . . . . . . . Disarmed . | . . . . . . . Reprogrammed . | . . . . . . . Reused . | . . . . . . . Traps Extracted . | . . . . . . . Installed . | . . . . . . . Triggered . | . . . . . . . Machines | -11 -10 -10 -10 -9 -8 -8 ---------- Run | Scr Mat Min Exi Min Mat Sto Machines Disabled 2 | . 1 . . . . 1 Max in Single Turn 1 | . 1 . . . . 1 Machines Sabotaged . | . . . . . . . Garrisons Compromised . | . . . . . . . Overloaded Fab Kills . | . . . . . . . Fab Network Shutdowns . | . . . . . . . Hacking | -11 -10 -10 -10 -9 -8 -8 --------- Run | Scr Mat Min Exi Min Mat Sto Machines Accessed 11 | . . . 4 . . 7 Terminals 5 | . . . . . . 5 Fabricators . | . . . . . . . Repair Stations 1 | . . . . . . 1 Recycling Units 1 | . . . . . . 1 Scanalyzers . | . . . . . . . Garrison Access . | . . . . . . . Total Hacks 62 | . . . 49 . . 13 Successful 59 | . . . 49 . . 10 Failed 3 | . . . . . . 3 Catastrophic . | . . . . . . . Database Lockouts . | . . . . . . . Manual 4 | . . . 2 . . 2 Terminals 7 | . . . . . . 7 Fabricators . | . . . . . . . Repair Stations 3 | . . . . . . 3 Recycling Units 3 | . . . . . . 3 Scanalyzers . | . . . . . . . Garrison Access . | . . . . . . . Terminal Hacks 55 | . . . 49 . . 6 Record 50 | . . . 49 . . 1 Open Door 3 | . . . . . . 3 Locate Traps 1 | . . . . . . 1 Dispatch Records 1 | . . . . . . 1 Fabricator Hacks . | . . . . . . . Repair Station Hacks 2 | . . . . . . 2 Scan Component 1 | . . . . . . 1 Repair 1 | . . . . . . 1 Recycling Unit Hacks 2 | . . . . . . 2 Recycle Component 1 | . . . . . . 1 Process 1 | . . . . . . 1 Scanalyzer . | . . . . . . . Garrison Access Hacks . | . . . . . . . Unauthorized Hacks . | . . . . . . . Terminals . | . . . . . . . Fabricators . | . . . . . . . Repair Stations . | . . . . . . . Recycling Units . | . . . . . . . Scanalyzers . | . . . . . . . Garrison Access . | . . . . . . . Data Cores Recovered . | . . . . . . . Used . | . . . . . . . Hacking Detections 3 | . . . . . . 3 Full Trace Events . | . . . . . . . Feedback Events . | . . . . . . . Feedback Blocked . | . . . . . . . Robot Schematics Acquired . | . . . . . . . Robots Built . | . . . . . . . Matter . | . . . . . . . Time . | . . . . . . . Total Robot Build Rating . | . . . . . . . Part Schematics Acquired . | . . . . . . . Parts Built . | . . . . . . . Matter . | . . . . . . . Time . | . . . . . . . Total Part Build Rating . | . . . . . . . Parts Repaired 1 | . . . . . . 1 Time 38 | . . . . . . 38 Parts Recycled 1 | . . . . . . 1 Recycled Matter 46 | . . . . . . 46 Retrieved Matter . | . . . . . . . Retrieved Components . | . . . . . . . Parts Scanalyzed . | . . . . . . . Part Schematics Acquired . | . . . . . . . Parts Damaged . | . . . . . . . Bothacking | -11 -10 -10 -10 -9 -8 -8 ------------ Run | Scr Mat Min Exi Min Mat Sto Used RIF Installer . | . . . . . . . Robots Hacked . | . . . . . . . Non-combat . | . . . . . . . Combat . | . . . . . . . Robot Hacks Applied . | . . . . . . . Relay Couplers Released . | . . . . . . . Robots Rewired . | . . . . . . . Allies Hacked . | . . . . . . . Hacks Repelled . | . . . . . . . Allies | -11 -10 -10 -10 -9 -8 -8 -------- Run | Scr Mat Min Exi Min Mat Sto Total Allies 1 | . . . . 1 . . Largest Group 1 | . . . . 1 1 . Highest-Rated Group 31 | . . . . 31 31 . Highest-Rated Ally 31 | . . . . 31 31 . Total Orders . | . . . . . . . Ally Attacks 8 | . . . . . 8 . Total Damage 83 | . . . . . 83 . Kills 1 | . . . . . 1 . Allies Corrupted . | . . . . . . . Allies Melted . | . . . . . . . Intel | -11 -10 -10 -10 -9 -8 -8 ------- Run | Scr Mat Min Exi Min Mat Sto Robot Analysis Total . | . . . . . . . Derelict Logs Recovered 1 | . . . . 1 . . Drone Launches . | . . . . . . . Drone Recoveries . | . . . . . . . Exploration | -11 -10 -10 -10 -9 -8 -8 ------------- Run | Scr Mat Min Exi Min Mat Sto Turns Passed 1940 | . 214 24 726 395 187 394 Spaces Moved 1545 | 1 130 21 606 307 157 323 Core . | . . . . . . . Treads . | . . . . . . . Legs 874 | 1 130 21 606 116 . . Wheels 671 | . . . . 191 157 323 Hover . | . . . . . . . Flight . | . . . . . . . Fastest Speed 80 | 120 120 120 120 80 80 90 Average Speed 106 | 120 120 120 120 95 86 95 Slowest Speed 120 | 120 120 120 120 120 90 100 Overloaded Moves . | . . . . . . . Propulsion Burnouts . | . . . . . . . Robots Hopped . | . . . . . . . Cave-ins Triggered . | . . . . . . . Exploration Rate (%) 36 | 2 30 6 92 58 14 56 Regions Visited 6 Branch Regions 4 Pre-discovered Areas 1 | . . . 1 . . . Known Exits Taken . | . . . . . . . Unknown Exits Taken 6 | 1 1 1 1 1 1 . Scrap Searched . | . . . . . . . Spaces Dug 7 | . . . . 7 . . Terrain Destroyed 96 | . . . . 7 . 89 Melee . | . . . . . . . Projectile 7 | . . . . 7 . . AOE 89 | . . . . . . 89 Terrain Rammed . | . . . . . . . Walls Destroyed . | . . . . . . . Machines Disabled . | . . . . . . . Actions | -11 -10 -10 -10 -9 -8 -8 --------- Run | Scr Mat Min Exi Min Mat Sto Total 1724 | . 163 20 605 352 196 388 Wait 83 | . 16 . . 2 26 39 Move 1539 | . 129 20 605 306 156 323 Hop . | . . . . . . . Pick Up 6 | . . . . 3 1 2 Fast Attach 11 | . . . . 2 4 5 Attach 4 | . . . . 2 1 1 Detach 7 | . . . . 1 1 5 Swap 6 | . 1 . . 4 1 . Drop 13 | . 4 . . 7 1 1 Fire 55 | . 13 . . 25 5 12 Melee . | . . . . . . . Ram . | . . . . . . . Kick . | . . . . . . . Crush . | . . . . . . . Escape Stasis . | . . . . . . . Rewire . | . . . . . . . Trap . | . . . . . . . Miscellaneous . | . . . . . . . Route ------- -11/Scrapyard -10/Materials -10/Mines -10/Exiles -9/Mines -8/Materials -8/Storage History --------- Turn | Location | Event 1 | -11/Scrapyard | Discovered new exit (range 0) 1 | -11/Scrapyard | Entered Materials 210 | -10/Materials | Discovered new exit (range 5) 215 | -10/Materials | Entered Mines 233 | -10/Mines | Deemed a non-threat by the Exiles lab entrance 235 | -10/Mines | Discovered new exit (range 5) 239 | -10/Mines | Entered Exiles 268 | -10/Exiles | Met 8R-AWN 289 | -10/Exiles | Met EX-HEX 304 | -10/Exiles | Build established: Mutant 333 | -10/Exiles | Met EX-DEC 392 | -10/Exiles | Discovered new exit (range 11) 476 | -10/Exiles | Visited The Gauntlet 731 | -10/Exiles | Met EX-BIN 751 | -10/Exiles | Aligned with FarCom system 752 | -10/Exiles | Given EX-Vault access code 893 | -10/Exiles | Learned location of Zion (-7) 965 | -10/Exiles | Entered Mines 1116 | -9/Mines | Learned Materials terminal intel 1279 | -9/Mines | Received a Mining Laser from a helpful Derelict 1310 | -9/Mines | Discovered new exit (range 15) 1360 | -9/Mines | Entered Materials 1360 | -8/Materials | Accompanied by 1 ally 1360 | -8/Materials | Evolved 4 slots: Propulsion x1, Utility x3 1361 | -8/Materials | Loaded intel: 12 terminal locations 1514 | -8/Materials | Discovered new exit (range 16) 1547 | -8/Materials | Entered Storage 1637 | -8/Storage | Found Prototype Launcher 1637 | -8/Storage | Identified Scatter Rocket Array 1770 | -8/Storage | Repaired Hrd. Medium Armor Plating 1941 | -8/Storage | Self-destructed Last Messages --------------- K-01 Serf knocked back. Acquired 9 matter. K-01 Serf destroyed. K-01 Serf collects debris. K-01 Serf knocked back. K-01 Serf destroyed. Acquired 4 matter. Acquired 11 matter. Dropped Lgt. Ion Engine. Acquired Wheel. R-06 Scavenger collects Lgt. Ion Engine. W-25 Informer sends out distress signal. K-01 Serf collects debris. Hrd. Medium Armor Plating destroyed. Critical hit. Wheel destroyed. |GDQXVQGJWMH5JMF T&CSMEHPB2O9T,J4%Z Triggered Shock Trap. The floor emits a surge of raw power. System corrupted (+2). Map ----- +----------------------------------------------------+ | ## """ """ #?# # # ###!!!# ######????????? | | # """ """ #?### ## # ######### #?????????????? | | ?# """ """ #?# # ## #???????# #?????????????? | | ?# """ """ #?# # ### ######### #?????????????? | | ?# ??### ??# #??????"??????? | | ## ??????####??# #???? """?????? | | # ###/############### #??"" """ #???? | | # # #???? | | + + #???? | | # # #???? | | #### ########+#########+############?? #???? | | #??# #?????# #???# #??????????? #???? | | ???# #????#T #???# """"" ##????????Y???####???? | | ####/####?## ##### """"" "#???????????????????? | | #??#! !##""" """"" T#???????????????????? | | #??#! !##"R "#???????????????????? | | """" #??#! !##""" """"" ##???????????????????? | | """" ##?#! !##### """"" #????????????????????? | | """" #?#####???# """"" #????????????????????? | | """" ##?????????# #????????????????????? | | ] #??????????##########????????????????????? | | #???????????# !! #????????????????????? | | #???????????#"" !! #????????????????????? | | ####+############???#"Y ! #????????????????????? | | ## # ! ???#"" ##???????????????????? | | # != % ????# @ Y#???????????????????? | | # ?????##+###+###???????????????????? | | ## # ????????# #?????????????????????? | | ?## ## ?????????# #?????????????????????? | | ### ## ?g????????## #?????????????????????? | | ##+######+###### l #?????????????????????? | | " # YYY gggg #?????????????????????? | | " # #?????????????????????? | | " ###########+########Y#####?????????????????????? | | " #????????? ?????# ????????????????????????? | | #????????? ""?????# ??????????????????????? | | ?????????" """????# """"" #????????????????????? | | ?????????" """????# """"" #???????????????????? | | ##????????"" ???# """"" ##???????????????????? | | ??????????#######????########????????????????????? | | | | | | | | | | | | | | | | | | | | | +----------------------------------------------------+ Best States ------------- Heat Dissipation 31 Energy Generation 14 Energy Capacity 280 Matter Stores 300 Matter Capacity 300 Sight Range 16 Robot Scan Range 16 Terrain Scan Density 10 Armor Coverage 675 Evasion (%) 44 Item Schematics ----------------- None Robot Schematics ------------------ None Fabricated ------------ Nothing Alien Tech Used ----------------- None Achievements -------------- None Challenges ------------ None Game ------ Seed TrackerMappingRouter Manual? 0 Play Time 00:28:08 Cumulative 8.7 hours Start 2020.09.20 @ 15:25:51 End 2020.09.20 @ 15:57:23 Sessions 1 Manual Loads 0 Difficulty Rogue Special Mode None Game No. 21 Rogue 21 Adventurer 0 Explorer 0 Win Type - Total 0 Types 0/0/0/0/0/0/0/0/0 Lore% 17 Gallery% 20 Achievement% 21 Wizard Run 0 Options --------- ASCII 1 Keyboard 1 Movement Vi Keybinds 0 Fullscreen 2 Font 24/Terminus Map View 76x50 Tactical HUD 0 Map Filters BRIGHTNESS(90)|SATURATION(66) Filters BRIGHTNESS(90)|SATURATION(66) Steam X RUN: 947783ed-5528-4bae-910f-96b4b18d45a8